bitfinex-derivatives/quotes_SOLF0:USTF0_20251223
["timestamp","ask_amount","ask_price","bid_price","bid_amount"]
[1766500487651,0.06105585,123.27,123.19,3.33]
[1766500487950,4.60558478,123.28,123.19,3.33]
[1766500488156,4.60558478,123.28,123.21,7.3081]
[1766500488348,110.73878478,123.3,123.2,117.0222]
[1766500488653,0.05234237,123.26,123.23,0.05521814]
[1766500489339,0.05234237,123.26,123.2,3.33]
[1766500489654,0.05234237,123.26,123.18,95.76]
[1766500489655,4.65792715,123.26,123.18,95.76]
[1766500489949,4.60558478,123.26,123.19,7.3092]
[1766500490344,0.051167,123.24,123.21,0.05383374]
[1766500490747,7.90675178,123.24,123.14,117.0753]
[1766500490946,7.85558478,123.24,123.14,117.0753]
[1766500491247,7.85558478,123.24,123.15,3.33]
[1766500491452,3.25,123.24,123.16,3.33]
[1766500491649,0.0567939,123.21,123.19,0.00107081]
[1766500491851,0.0567939,123.21,123.16,7.3107]
[1766500492041,0.0567939,123.21,123.15,117.0691]
[1766500492446,0.0567939,123.21,123.15,10.6413]
[1766500492744,0.0567939,123.21,123.17,0.02563889]
[1766500492944,118.23748478,123.27,123.17,3.35563889]
[1766500492945,3.25,123.27,123.17,3.35563889]
[1766500493147,3.25,123.25,123.15,113.7356]
[1766500493354,3.25,123.23,123.14,3.33]
[1766500493554,4.60558478,123.22,123.14,3.33]
[1766500493857,4.60558478,123.24,123.16,3.33]
[1766500494154,0.05578156,123.21,123.19,0.05627772]
[1766500495457,103.43558478,123.26,123.19,0.05627772]
[1766500496351,0.05815123,123.24,123.19,0.05627772]
[1766500497958,95.58,123.26,123.19,3.38627772]
[1766500498752,95.58,123.26,123.19,117.08577772]
[1766500498950,0.05689164,123.24,123.19,117.08577772]
[1766500499149,15.15918478,123.29,123.21,7.3081]
[1766500499949,3.25,123.26,123.19,7.3089]
[1766500500153,0.0592657,123.24,123.21,0.05579653]
[1766500500348,3.3092657,123.24,123.15,117.0671]
[1766500500553,100.20558478,123.25,123.17,3.33]
[1766500500554,95.6,123.25,123.17,3.33]
[1766500500752,15.13128478,123.26,123.17,3.33]
[1766500500954,95.6,123.27,123.2,7.3085]
[1766500501150,3.22,123.29,123.21,3.32]
[1766500501357,0.00065242,123.26,123.24,0.05438344]
[1766500501563,3.22,123.33,123.25,7.3057]
[1766500501564,10.5212,123.33,123.25,7.3057]
[1766500501951,7.82558478,123.32,123.23,3.32]
[1766500502149,7.82558478,123.3,123.23,7.3066]
[1766500502364,0.05461815,123.28,123.25,0.05283751]
[1766500503258,7.88020293,123.28,123.2,3.32]
[1766500503464,7.82558478,123.28,123.2,3.32]
[1766500503658,4.60558478,123.28,123.19,3.32]
[1766500503858,4.60558478,123.26,123.17,95.78]
[1766500504063,3.22,123.25,123.18,7.3099]
[1766500504264,0.06110828,123.23,123.2,0.00337345]
[1766500507060,3.28110828,123.23,123.16,7.3107]
[1766500507557,7.36840828,123.23,123.14,7.3119]
[1766500507869,7.82558478,123.22,123.14,7.3119]
[1766500508065,0.05407337,123.19,123.17,0.00211278]
[1766500508268,0.05407337,123.19,123.09,3.32]
[1766500508454,4.60558478,123.16,123.09,3.32]
[1766500508767,3.22,123.15,123.06,3.32]
[1766500508965,4.60558478,123.16,123.07,3.32]
[1766500509167,0.06216647,123.13,123.1,0.06081023]
[1766500509967,103.42558478,123.12,123.01,3.32]
[1766500510155,7.82558478,123.1,123.01,3.32]
[1766500510560,3.22,123.13,123.02,117.1774]
[1766500510761,0.00144598,123.09,123.06,0.02832672]
[1766500511263,95.62,123.15,123.06,117.16992672]
[1766500511456,95.62,123.15,123.06,10.6368]
[1766500511658,98.84,123.15,123.06,3.32]
[1766500511859,95.62,123.15,123.07,3.32]
[1766500512275,0.06105109,123.12,123.1,3.3766344]
[1766500512460,3.22,123.2,123.11,117.0952]
[1766500512655,95.64,123.22,123.13,3.32]
[1766500512967,95.64,123.22,123.14,3.32]
[1766500513361,0.06074281,123.19,123.17,0.05296849]
[1766500514561,0.00074281,123.19,123.17,0.05296849]
[1766500515976,0.00074281,123.19,123.17,0.00296849]
[1766500516165,0.00074281,123.19,123.11,7.3139]
[1766500516373,106.1686,123.21,123.11,7.3139]
[1766500516677,110.77418478,123.21,123.11,10.6339]
[1766500517280,0.05453479,123.17,123.09,7.315]
[1766500517579,4.60558478,123.15,123.05,117.1511]
[1766500517782,4.60558478,123.15,123.05,10.6374]
[1766500517980,7.82558478,123.15,123.05,10.6374]
[1766500518167,7.82558478,123.15,123.05,117.1513]
[1766500518375,0.00239091,123.11,123.09,0.05813592]
[1766500518673,7.82558478,123.15,123.09,0.05813592]
[1766500519278,0.05718325,123.13,123.09,0.05813592]
[1766500521291,7.82558478,123.18,123.09,124.48733592]
[1766500521489,103.48558478,123.2,123.1,3.32]
[1766500521986,106.38429681,123.2,123.1,3.32]
[1766500522182,10.5298,123.19,123.14,0.0574954]
[1766500522384,0.053506,123.16,123.07,3.32]
[1766500522590,3.22,123.17,123.07,3.32]
[1766500522986,3.22,123.17,123.08,10.6356]
[1766500523387,0.0521202,123.14,123.11,0.05246019]
[1766500523886,0.0021202,123.14,123.11,0.05246019]
[1766500525192,0.0021202,123.14,123.05,117.1486]
[1766500525389,3.22,123.16,123.06,3.32]
[1766500526287,3.22,123.16,123.1,0.05173467]
[1766500526288,0.05700111,123.12,123.1,0.05173467]
[1766500526989,0.05700111,123.12,123.05,95.84]
[1766500528000,0.05700111,123.12,123.07,0.05407507]
[1766500530799,3.40700111,123.12,123.03,3.32]
[1766500530991,3.35,123.12,123.03,3.32]
[1766500531201,3.35,123.1,123.02,7.3191]
[1766500531395,3.35,123.1,123.0,99.09]
[1766500531893,0.05931432,123.06,123.04,0.00259465]
[1766500532195,3.40931432,123.06,122.97,3.23]
[1766500532494,3.35,123.04,122.95,95.86]
[1766500532698,3.35,123.03,122.95,95.86]
[1766500532895,10.78429681,123.08,122.97,3.23]
[1766500533089,0.05784918,123.04,122.99,3.35]
[1766500533491,3.28,123.08,123.0,3.35]
[1766500533804,3.28,123.08,122.98,113.892]
[1766500533990,95.68,123.09,123.01,3.35]
[1766500534293,95.68,123.09,123.01,117.217]
[1766500534598,95.68,123.09,123.04,0.05784918]
[1766500534599,0.05896059,123.06,123.04,0.05784918]
[1766500535098,0.05896059,123.06,122.98,3.35]
[1766500535398,3.28,123.08,122.98,3.35]
[1766500536093,0.05166847,123.04,122.98,3.35]
[1766500536294,0.05166847,123.04,122.95,99.23]
[1766500536499,0.00140148,123.01,122.96,3.35]
[1766500536690,3.28,123.07,122.96,3.35]
[1766500537594,0.05150776,123.03,123.0,0.05]
[1766500538697,0.05150776,123.03,122.96,3.35]
[1766500538889,3.33150776,123.03,122.93,99.25]
[1766500539094,3.28,123.03,122.93,99.25]
[1766500539803,0.05933435,122.99,122.9,3.35]
[1766500540001,0.05933435,122.99,122.85,3.35]
[1766500540002,0.06147476,122.96,122.85,3.35]
[1766500540296,0.00362902,122.92,122.89,0.05]
[1766500540601,3.28,123.02,122.89,3.35]
[1766500541286,0.00474826,122.97,122.94,0.05]
[1766500541495,0.00474826,122.97,122.93,3.35]
[1766500541695,0.00474826,122.97,122.9,3.35]
[1766500541888,3.28,123.02,122.9,3.35]
[1766500542390,3.28,123.02,122.95,0.05528583]
[1766500543303,0.05844888,123.0,122.95,0.05528583]
[1766500546298,3.33844888,123.0,122.89,3.35]
[1766500546495,10.78429681,123.0,122.89,3.35]
[1766500546694,3.28,122.99,122.89,3.35]
[1766500546897,3.28,122.96,122.86,3.35]
[1766500547406,0.06118146,122.92,122.9,0.06119256]
[1766500548305,0.00118146,122.92,122.9,0.06119256]
[1766500550907,0.00118146,122.92,122.9,3.41119256]
[1766500551903,0.00118146,122.92,122.9,0.06119256]
[1766500552901,0.00118146,122.92,122.84,3.35]
[1766500553102,3.28,122.95,122.84,3.35]
[1766500553409,3.28,122.93,122.8,3.35]
[1766500554111,0.05835476,122.88,122.85,0.05973576]
[1766500554306,3.34239245,122.88,122.8,3.35]
[1766500554606,10.78429681,122.91,122.8,3.35]
[1766500554805,3.28,122.9,122.8,3.35]
[1766500555001,7.50429681,122.88,122.75,1.41662087]
[1766500555204,0.05324944,122.83,122.8,0.05092805]
[1766500556113,0.00324944,122.83,122.8,0.05092805]
[1766500556408,0.00324944,122.83,122.8,3.40092805]
[1766500556824,0.00324944,122.83,122.8,0.05092805]
[1766500559010,0.00324944,122.83,122.72,92.51696696]
[1766500559011,3.28324944,122.83,122.73,3.35]
[1766500559215,3.28,122.82,122.73,3.35]
[1766500559607,3.28,122.81,122.73,3.35]
[1766500560099,0.0556151,122.78,122.76,0.05]
[1766500560502,3.28,122.81,122.76,0.05]
[1766500560704,3.28,122.84,122.76,0.05]
[1766500560905,10.7488,122.87,122.77,10.794]
[1766500561110,3.42,122.86,122.77,10.794]
[1766500561314,3.42,122.84,122.74,117.5771]
[1766500561515,0.05869177,122.8,122.78,0.05817671]
[1766500561910,3.42,122.84,122.78,0.05817671]
[1766500562220,10.751,122.83,122.72,124.9285]
[1766500562411,10.751,122.83,122.73,3.46]
[1766500562610,3.42,122.82,122.73,3.46]
[1766500562912,10.7517,122.82,122.73,10.7965]
[1766500563116,0.05949147,122.79,122.76,0.05891525]
[1766500563314,10.92429681,122.85,122.76,0.05891525]
[1766500563621,10.92429681,122.85,122.75,3.46]
[1766500563814,3.42,122.85,122.75,3.46]
[1766500564009,3.42,122.85,122.76,117.5574]
[1766500564316,0.00071549,122.82,122.79,117.58863108]
[1766500564521,10.7464,122.91,122.81,3.46]
[1766500565016,3.42,122.91,122.82,3.46]
[1766500565221,5.46707109,122.94,122.85,3.46]
[1766500565426,3.42,122.93,122.83,114.0331]
[1766500565623,0.06000394,122.91,122.83,7.3304]
[1766500565916,0.06000394,122.91,122.82,3.46]
[1766500565917,3.42,122.91,122.82,3.46]
[1766500566320,3.42,122.91,122.83,3.46]
[1766500566518,0.05539986,122.88,122.86,0.05221349]
[1766500566719,0.05368077,122.88,122.86,0.05673142]
[1766500566919,18.24899681,122.94,122.86,0.05673142]
[1766500567123,18.24899681,122.94,122.85,7.3294]
[1766500567324,3.42,122.94,122.86,7.3288]
[1766500567526,3.42,122.94,122.85,3.46]
[1766500567715,113.9191,122.96,122.85,3.46]
[1766500568026,0.05429212,122.92,122.89,0.06008926]
[1766500568213,0.05429212,122.92,122.82,117.5023]
[1766500568413,3.42,122.94,122.83,3.46]
[1766500568614,3.42,122.96,122.86,3.46]
[1766500569224,0.05238455,122.92,122.9,0.05571526]
[1766500569822,0.05238455,122.92,122.86,10.7888]
[1766500570224,0.05238455,122.92,122.84,7.3299]
[1766500570415,3.42,122.94,122.83,3.46]
[1766500570416,113.9433,122.93,122.83,3.46]
[1766500570616,3.42,122.92,122.83,10.7905]
[1766500570821,0.0031677,122.89,122.86,0.0608352]
[1766500571020,3.42,122.95,122.85,3.46]
[1766500571222,3.42,122.95,122.86,3.46]
[1766500571425,99.3,122.98,122.89,3.46]
[1766500571628,3.42,123.01,122.91,3.46]
[1766500571829,0.05278037,122.97,122.95,0.05842875]
[1766500572034,0.05278037,122.97,122.89,117.4392]
[1766500572333,3.42,122.99,122.9,3.46]
[1766500572524,95.88,123.04,122.93,113.9404]
[1766500572717,99.3,123.04,122.94,3.46]
[1766500572917,99.3,123.04,122.87,113.9896]
[1766500572918,121.43843467,123.0,122.87,113.9896]
[1766500573126,3.42,122.98,122.88,3.46]
[1766500573329,3.42,122.96,122.85,99.48]
[1766500573624,113.8882,122.99,122.85,99.48]
[1766500573625,3.42,122.99,122.88,3.46]
[1766500573823,3.42,123.01,122.9,3.46]
[1766500574023,0.05526974,122.97,122.94,0.03745532]
[1766500575431,3.42,123.01,122.94,0.03745532]
[1766500575737,103.36429681,123.03,122.94,0.03745532]
[1766500575926,106.78429681,123.03,122.92,3.46]
[1766500576126,114.10349681,123.03,122.93,7.3245]
[1766500576328,3.42,123.02,122.92,3.46]
[1766500576531,0.05686194,122.98,122.96,0.00204797]
[1766500576738,0.05686194,122.98,122.89,117.4362]
[1766500576935,3.42,123.0,122.89,117.4362]
[1766500577338,10.741,123.0,122.9,10.7864]
[1766500577536,3.42,123.0,122.91,3.46]
[1766500577741,0.05978161,122.97,122.94,0.03067709]
[1766500578042,10.92429681,123.03,122.94,0.03067709]
[1766500578230,10.92429681,123.03,122.93,3.46]
[1766500578830,0.05128754,122.99,122.97,0.0543027]
[1766500579743,0.05128754,122.99,122.91,7.326]
[1766500580038,3.42,123.01,122.91,7.326]
[1766500580733,0.06041965,122.97,122.95,0.036156]
[1766500581437,3.42,123.04,122.95,3.496156]
[1766500581744,3.42,123.04,122.95,3.46]
[1766500582435,0.0533665,123.01,122.98,0.0605303]
[1766500583732,0.0033665,123.01,122.98,0.0605303]
[1766500584933,0.0033665,123.01,122.98,0.0005303]
[1766500585348,0.0033665,123.01,122.89,3.46]
[1766500585349,3.42,123.0,122.89,3.46]
[1766500585840,8.04752247,122.98,122.89,3.46]
[1766500586229,8.04752247,122.98,122.92,0.06235874]
[1766500586437,0.05441997,122.95,122.92,0.06235874]
[1766500586744,0.05441997,122.95,122.92,0.00235874]
[1766500586931,8.04752247,122.93,122.85,3.46]
[1766500587243,7.3245,122.94,122.85,10.7894]
[1766500587443,4.62752247,122.95,122.85,3.46]
[1766500587835,0.05128676,122.91,122.89,0.02368661]
[1766500588032,3.42,122.96,122.89,0.02368661]
[1766500588233,8.04752247,122.95,122.89,0.02368661]
[1766500588945,0.05877744,122.93,122.89,0.02368661]
[1766500590746,7.3227,122.97,122.89,0.02368661]
[1766500590947,7.3227,122.97,122.88,3.46]
[1766500591145,8.04752247,122.98,122.88,3.46]
[1766500591742,8.04752247,122.98,122.85,99.51]
[1766500591743,0.05990968,122.94,122.85,99.51]
[1766500591949,3.32,122.97,122.87,3.53]
[1766500591950,7.3233,122.96,122.87,3.53]
[1766500592838,7.3233,122.96,122.9,0.05172286]
[1766500592839,0.05938843,122.93,122.9,0.05172286]
[1766500593144,3.32,122.97,122.9,0.05172286]
[1766500593952,15.27032247,122.97,122.9,0.05172286]
[1766500594147,0.05811608,122.95,122.9,0.05172286]
[1766500594944,7.3223,122.98,122.9,3.47172286]
[1766500595257,7.3223,122.98,122.9,3.42]
[1766500595741,10.7423,122.98,122.9,3.42]
[1766500595942,4.62752247,122.97,122.89,7.3269]
[1766500596151,0.06136362,122.95,122.93,0.05146184]
[1766500598245,0.00136362,122.95,122.93,0.05146184]
[1766500598448,4.62752247,122.99,122.93,0.05146184]
[1766500599150,3.42,123.01,122.93,0.05146184]
[1766500599350,3.42,123.01,122.92,10.7453]
[1766500599653,0.05248974,122.98,122.95,0.06204613]
[1766500601451,0.00248974,122.98,122.95,0.06204613]
[1766500602759,0.00248974,122.98,122.95,0.00204613]
[1766500606070,3.42,123.03,122.95,3.42204613]
[1766500606370,4.62752247,123.05,122.95,3.42]
[1766500606553,4.62752247,123.05,122.96,7.323]
[1766500606554,7.3185,123.04,122.96,7.323]
[1766500606965,10.7385,123.04,122.96,7.323]
[1766500607163,0.05429529,123.01,122.99,0.05869]
[1766500607568,0.05429529,123.01,122.94,95.98]
[1766500608455,3.42,123.0,122.9,3.42]
[1766500608659,3.42,123.0,122.91,3.42]
[1766500609262,4.62752247,122.99,122.91,3.42]
[1766500609567,10.80094892,122.96,122.88,3.42]
[1766500609765,10.7433,122.96,122.88,3.42]
[1766500609959,4.62752247,122.99,122.9,3.42]
[1766500610168,8.04752247,123.02,122.92,3.42]
[1766500610655,0.05912013,122.98,122.96,0.05815002]
[1766500610852,0.05912013,122.98,122.92,3.42]
[1766500611463,0.05912013,122.98,122.9,95.96]
[1766500611662,15.36952247,122.98,122.9,7.3263]
[1766500611860,0.05529106,122.95,122.86,3.42]
[1766500612060,0.05598204,122.92,122.86,3.42]
[1766500613665,113.9028,122.98,122.88,3.42]
[1766500613666,3.42,122.98,122.88,3.42]
[1766500613867,3.42,122.97,122.88,3.42]
[1766500614568,3.42,122.97,122.89,3.42]
[1766500614769,0.0565705,122.94,122.91,0.05647208]
[1766500615164,4.62752247,122.99,122.91,7.38227208]
[1766500615366,8.04752247,122.99,122.91,7.3258]
[1766500615568,8.04752247,122.97,122.89,3.42]
[1766500615970,8.04752247,122.97,122.89,10.747]
[1766500616170,0.05576094,122.94,122.92,0.05362951]
[1766500617873,0.05576094,122.94,122.92,0.00362951]
[1766500620571,3.42,122.97,122.92,0.00362951]
[1766500621175,8.04752247,122.97,122.92,0.00362951]
[1766500621472,0.05413453,122.96,122.92,0.00362951]
[1766500622063,8.13752247,122.95,122.86,7.3289]
[1766500622972,3.51,122.95,122.87,10.6483]
[1766500623175,0.06053639,122.92,122.9,0.05191682]
[1766500623573,0.06053639,122.92,122.9,0.00191682]
[1766500623773,0.06053639,122.92,122.85,7.3293]
[1766500623974,8.13752247,122.91,122.81,213.3537]
[1766500624174,8.13752247,122.91,122.8,129.0876944]
[1766500624175,15.46372247,122.91,122.82,3.32]
[1766500624578,8.13752247,122.91,122.82,3.32]
[1766500624785,0.0018424,122.88,122.85,0.05397749]
[1766500624979,3.51,122.94,122.86,3.32]
[1766500625980,0.05368257,122.91,122.89,0.05752988]
[1766500626371,8.19120504,122.91,122.83,3.32]
[1766500626574,8.13752247,122.91,122.83,3.32]
[1766500626774,10.8369,122.9,122.82,7.3311]
[1766500627278,10.8369,122.9,122.85,0.06003283]
[1766500627473,0.06067865,122.87,122.85,0.06003283]
[1766500628588,3.51,122.93,122.85,3.38003283]
[1766500628786,3.51,122.93,122.85,3.32]
[1766500629289,15.46272247,122.93,122.85,3.32]
[1766500629485,0.05371517,122.9,122.88,0.05388004]
[1766500629681,0.05371517,122.9,122.82,213.3622]
[1766500629887,4.62752247,122.91,122.82,117.3622]
[1766500630085,4.62752247,122.91,122.83,7.3306]
[1766500630086,8.13752247,122.91,122.83,7.3306]
[1766500630385,3.51,122.9,122.82,3.32]
[1766500630584,3.51,122.9,122.85,0.05483795]
[1766500630782,0.06181612,122.87,122.85,0.05483795]
[1766500631782,0.00181612,122.87,122.85,7.38433795]
[1766500632293,0.00181612,122.87,122.85,0.05483795]
[1766500635288,0.00181612,122.87,122.85,7.38433795]
[1766500636189,3.51,123.0,122.91,113.9551]
[1766500636390,3.51,123.0,122.91,98.53]
[1766500636594,3.51,123.0,122.91,212.4881]
[1766500636789,3.51,123.0,122.91,96.02]
[1766500636996,8.13752247,122.98,122.9,7.3263]
[1766500637199,0.05234926,122.95,122.93,0.052225]
[1766500637989,0.05234926,122.95,122.88,98.53]
[1766500638689,0.05234926,122.95,122.89,2.51]
[1766500639107,0.05234926,122.95,122.91,0.06108196]
[1766500640999,8.18987173,122.95,122.87,96.02]
[1766500641299,8.13752247,122.95,122.87,96.02]
[1766500642002,0.06011385,122.92,122.9,0.02545871]
[1766500642398,0.06011385,122.92,122.86,2.51]
[1766500642796,0.06011385,122.92,122.86,9.8389]
[1766500642996,0.06011385,122.92,122.86,2.51]
[1766500643294,0.00011385,122.92,122.87,2.51]
[1766500643498,0.00011385,122.92,122.89,7.3271]
[1766500644098,3.51,122.98,122.9,7.3263]
[1766500645002,10.832,122.98,122.89,2.45]
[1766500645201,0.05848791,122.95,122.92,0.05651719]
[1766500646199,0.05848791,122.95,122.86,98.45]
[1766500646401,3.51,122.95,122.86,2.45]
[1766500647098,0.06239341,122.92,122.86,2.45]
[1766500647695,0.06239341,122.92,122.87,7.3281]
[1766500647893,0.00239341,122.92,122.88,2.45]
[1766500648097,0.00239341,122.92,122.91,2.39]
[1766500648598,0.00239341,122.92,122.91,4.01]
[1766500649798,95.86,123.03,122.94,2.39]
[1766500649998,3.51,123.02,122.94,2.39]
[1766500650394,3.51,123.02,122.92,98.39]
[1766500650801,0.05423242,122.98,122.96,0.05270509]
[1766500650994,0.05423242,122.98,122.92,2.39]
[1766500651804,0.05423242,122.98,122.92,9.7152]
[1766500652004,0.05423242,122.98,122.92,2.39]
[1766500652402,0.05423242,122.98,122.93,116.3323]
[1766500652609,0.05423242,122.98,122.93,2.39]
[1766500653413,0.05423242,122.98,122.93,9.7144]
[1766500653610,0.05423242,122.98,122.9,98.39]
[1766500653814,0.05133106,122.95,122.9,98.39]
[1766500654515,0.05133106,122.95,122.88,113.9885]
[1766500654810,3.30133106,122.95,122.86,230.3972]
[1766500654999,0.05407279,122.92,122.86,230.3972]
[1766500655603,0.05407279,122.92,122.88,7.3274]
[1766500657312,0.05407279,122.92,122.86,9.7185]
[1766500657510,0.05407279,122.92,122.82,114.0362]
[1766500657712,3.25,122.98,122.87,2.39]
[1766500657911,3.25,122.96,122.87,2.39]
[1766500658108,3.25,122.96,122.86,96.0]
[1766500658508,3.25,122.94,122.87,7.3283]
[1766500658709,0.05544844,122.92,122.89,0.05415606]
[1766500659315,0.05544844,122.92,122.85,2.44]
[1766500659510,3.25,122.95,122.85,2.44]
[1766500659909,3.25,122.94,122.85,9.7692]
[1766500660108,3.25,122.93,122.85,7.3292]
[1766500660309,0.06141589,122.9,122.85,7.3292]
[1766500662415,0.06141589,122.9,122.84,2.44]
[1766500662614,0.06141589,122.9,122.83,7.3304]
[1766500663615,3.31141589,122.9,122.81,9.7716]
[1766500663824,0.0564477,122.87,122.81,9.7716]
[1766500664722,0.0564477,122.87,122.79,7.3328]
[1766500664914,0.05275953,122.84,122.79,7.3328]
[1766500668712,0.05275953,122.84,122.78,98.44]
[1766500669139,7.3313,122.83,122.75,98.46]
[1766500669314,0.06206396,122.8,122.75,98.46]
[1766500669816,0.06206396,122.8,122.75,98.48]
[1766500672729,3.25,122.87,122.77,98.47]
[1766500673026,99.13,122.9,122.8,2.43]
[1766500673210,0.05918006,122.86,122.84,0.02558985]
[1766500673410,3.25,122.9,122.84,0.02558985]
[1766500674012,3.25,122.93,122.84,2.39558985]
[1766500674218,3.25,122.93,122.84,2.37]
[1766500674428,0.05407797,122.9,122.87,0.0535273]
[1766500675718,0.05407797,122.9,122.87,0.0035273]
[1766500675919,3.30407797,122.9,122.87,0.0035273]
[1766500676223,3.30407797,122.9,122.81,105.7916]
[1766500676418,3.25,122.9,122.81,105.7916]
[1766500677019,0.06229161,122.87,122.81,105.7916]
[1766500677217,0.00229161,122.87,122.84,0.03124261]
[1766500677422,3.25,122.93,122.84,2.39124261]
[1766500677725,3.25,122.93,122.84,2.36]
[1766500678221,3.25,122.92,122.82,7.331]
[1766500678418,0.05139324,122.88,122.86,0.00165388]
[1766500678725,3.25,122.9,122.8,212.5112]
[1766500678924,3.25,122.9,122.81,2.41]
[1766500679518,0.06236886,122.87,122.84,0.04353422]
[1766500680826,3.41236886,122.87,122.76,96.04]
[1766500681031,3.35,122.84,122.75,2.44]
[1766500681726,0.05433652,122.81,122.75,2.44]
[1766500682228,0.05433652,122.81,122.72,7.337]
[1766500682229,3.40433652,122.81,122.72,7.337]
[1766500682426,0.05374261,122.78,122.72,2.44]
[1766500682620,0.05374261,122.78,122.7,4.82485737]
[1766500682621,3.40374261,122.78,122.7,4.82485737]
[1766500682836,0.00154175,122.75,122.71,2.44]
[1766500683131,3.35,122.84,122.73,114.1278]
[1766500683438,3.35,122.84,122.76,2.39]
[1766500684027,0.05487621,122.81,122.79,0.05154175]
[1766500684233,0.05692638,122.81,122.79,0.05154175]
[1766500684636,99.25,122.86,122.79,0.05154175]
[1766500685133,3.35,122.85,122.79,0.05154175]
[1766500685831,0.06023603,122.83,122.79,0.05154175]
[1766500686539,3.41023603,122.83,122.79,0.00154175]
[1766500686726,3.41023603,122.83,122.74,98.4]
[1766500686926,3.35,122.83,122.74,98.4]
[1766500687429,3.35,122.83,122.74,9.6758]
[1766500687621,3.35,122.83,122.72,114.1336]
[1766500687622,0.05629199,122.8,122.72,96.06]
[1766500687822,3.35,122.79,122.7,4.82485737]
[1766500688027,3.35,122.79,122.7,14.60315737]
[1766500688227,3.35,122.79,122.7,7.26485737]
[1766500688424,3.35,122.78,122.7,4.82485737]
[1766500688627,3.35,122.78,122.7,121.42125737]
[1766500688628,0.05156183,122.75,122.7,121.42125737]
[1766500688933,3.35,122.79,122.7,4.82485737]
[1766500689135,10.6835,122.79,122.7,4.82485737]
[1766500689334,3.35,122.78,122.7,4.82485737]
[1766500689736,0.05610978,122.75,122.73,0.05216556]
[1766500690137,0.05610978,122.75,122.7,4.82485737]
[1766500690337,3.35,122.8,122.71,116.635]
[1766500690635,228.0248,122.86,122.74,114.1181]
[1766500690636,3.35,122.84,122.74,114.1181]
[1766500690941,3.35,122.84,122.75,116.5492]
[1766500691136,3.35,122.84,122.75,2.44]
[1766500691335,0.0548183,122.81,122.78,0.05610978]
[1766500691839,3.35,122.91,122.8,116.5027]
[1766500692028,3.35,122.9,122.8,2.44]
[1766500692227,3.35,122.88,122.78,98.54]
[1766500692427,3.35,122.88,122.78,2.44]
[1766500692627,3.35,122.88,122.73,114.1208]
[1766500692628,3.40254733,122.84,122.82,0.00034771]
[1766500692843,3.40254733,122.84,122.75,114.1094]
[1766500693039,103.46966897,122.86,122.77,2.5]
[1766500693235,3.35,122.87,122.78,9.8335]
[1766500693643,10.6787,122.87,122.78,9.8335]
[1766500693843,0.05462553,122.84,122.81,0.05058037]
[1766500695143,3.40462553,122.84,122.75,98.58]
[1766500695443,3.35,122.83,122.73,2.55]
[1766500695746,3.35,122.83,122.74,2.55]
[1766500696139,0.05989084,122.8,122.74,2.55]
[1766500696641,0.05989084,122.8,122.72,98.63]
[1766500696837,10.87966897,122.83,122.73,2.55]
[1766500696838,0.05753538,122.77,122.73,2.55]
[1766500697144,3.35,122.82,122.73,2.55]
[1766500697536,10.6818,122.82,122.73,9.8864]
[1766500697735,3.35,122.85,122.75,2.49]
[1766500698040,0.05609248,122.81,122.79,0.05252418]
[1766500698435,3.35,122.85,122.79,0.05252418]
[1766500699547,0.06095134,122.83,122.79,0.05252418]
[1766500699742,7.52966897,122.89,122.8,0.0530096]
[1766500699936,10.87966897,122.89,122.8,2.37]
[1766500700137,3.35,122.87,122.78,7.3336]
[1766500700538,3.35,122.85,122.76,2.37]